[Event "Late-Titled-Tuesday-Blitz-September-05-2023"]
[Site "Chess.com"]
[Date "2023.09.05"]
[Round "1"]
[White "Schwindle"]
[Black "TanitoluwaAps116"]
[Result "1-0"]
[WhiteElo "2416"]
[BlackElo "2702"]
[TimeControl "180+1"]
[EndTime "14:08:27 PDT"]
[Termination "Schwindle won by resignation"]

1. e4 {[%clk 0:03:00.9]} 1... c5 {[%clk 0:02:25.1]} 2. Nf3 {[%clk 0:03:00.5]}
2... Nc6 {[%clk 0:02:24.9]} 3. d4 {[%clk 0:02:57.8]} 3... cxd4 {[%clk
0:02:25.8]} 4. Nxd4 {[%clk 0:02:58.3]} 4... f6 {[%clk 0:02:26.2]} 5. Nc3 {[%clk
0:02:49.6]} 5... g6 {[%clk 0:02:02]} 6. Bc4 {[%clk 0:02:44.1]} 6... Bg7 {[%clk
0:01:58.7]} 7. h4 {[%clk 0:02:34.2]} 7... h5 {[%clk 0:01:39.5]} 8. Nxc6 {[%clk
0:02:14.5]} 8... bxc6 {[%clk 0:01:35.1]} 9. O-O {[%clk 0:02:00.8]} 9... e6
{[%clk 0:01:19.2]} 10. Qe2 {[%clk 0:01:48]} 10... Ne7 {[%clk 0:01:13]} 11. Rd1
{[%clk 0:01:46.1]} 11... Qc7 {[%clk 0:01:01.9]} 12. Bb3 {[%clk 0:01:44.3]} 12...
O-O {[%clk 0:00:56.9]} 13. Be3 {[%clk 0:01:32.1]} 13... d5 {[%clk 0:00:44.7]}
14. Bc5 {[%clk 0:01:26.7]} 14... Rf7 {[%clk 0:00:28.8]} 15. Re1 {[%clk
0:01:17.5]} 15... Bb7 {[%clk 0:00:13.1]} 16. Bxe7 {[%clk 0:01:11.5]} 16... Rxe7
{[%clk 0:00:06]} 17. exd5 {[%clk 0:01:11.8]} 17... cxd5 {[%clk 0:00:06.2]} 18.
Nxd5 {[%clk 0:01:00.7]} 18... Bxd5 {[%clk 0:00:06.4]} 19. Bxd5 {[%clk
0:01:00.6]} 19... Rae8 {[%clk 0:00:07.3]} 20. Bb3 {[%clk 0:01:00.4]} 20... Kh7
{[%clk 0:00:07.3]} 21. Rad1 {[%clk 0:00:56.2]} 21... f5 {[%clk 0:00:07.2]} 22.
c3 {[%clk 0:00:55.4]} 22... e5 {[%clk 0:00:07.2]} 23. Rd5 {[%clk 0:00:51.8]}
23... e4 {[%clk 0:00:07]} 24. Red1 {[%clk 0:00:49.9]} 24... e3 {[%clk 0:00:06]}
25. Ba4 {[%clk 0:00:31.1]} 25... Rb8 {[%clk 0:00:03.5]} 26. Rd7 {[%clk
0:00:23.1]} 26... exf2+ {[%clk 0:00:03.5]} 27. Qxf2 {[%clk 0:00:20.6]} 27...
Rxd7 {[%clk 0:00:03.6]} 28. Rxd7 {[%clk 0:00:20.4]} 28... Qe5 {[%clk 0:00:04.3]}
29. Bb3 {[%clk 0:00:17.7]} 29... Kh6 {[%clk 0:00:03.7]} 30. Rd5 {[%clk 0:00:16]}
30... Qe4 {[%clk 0:00:03.1]} 31. Qd2+ {[%clk 0:00:13.2]} 31... f4 {[%clk
0:00:03.1]} 32. Rd6 {[%clk 0:00:09.9]} 32... Re8 {[%clk 0:00:02.7]} 33. Bc2
{[%clk 0:00:09.4]} 33... Qe3+ {[%clk 0:00:03.3]} 34. Qxe3 {[%clk 0:00:09.5]}
34... Rxe3 {[%clk 0:00:02.4]} 35. Rxg6+ {[%clk 0:00:09.8]} 35... Kh7 {[%clk
0:00:03.1]} 36. Re6+ {[%clk 0:00:05.2]} 36... Kg8 {[%clk 0:00:02.7]} 37. Rxe3
{[%clk 0:00:05.3]} 37... fxe3 {[%clk 0:00:03.6]} 38. Kf1 {[%clk 0:00:05.6]}
38... a5 {[%clk 0:00:03.9]} 39. Bg6 {[%clk 0:00:05.4]} 39... a4 {[%clk
0:00:03.7]} 40. a3 {[%clk 0:00:05.9]} 40... Kf8 {[%clk 0:00:02]} 41. Bxh5 {[%clk
0:00:05.9]} 41... Ke7 {[%clk 0:00:02]} 42. Ke2 {[%clk 0:00:06.1]} 42... Bh6
{[%clk 0:00:02.6]} 43. g4 {[%clk 0:00:05.9]} 43... Kd6 {[%clk 0:00:03.2]} 44. g5
{[%clk 0:00:06.4]} 44... Bg7 {[%clk 0:00:04]} 45. Kxe3 {[%clk 0:00:06.4]} 45...
Kc5 {[%clk 0:00:04.9]} 46. Kd3 {[%clk 0:00:06.8]} 46... Kd5 {[%clk 0:00:05.2]}
47. Bf7+ {[%clk 0:00:06.8]} 47... Ke5 {[%clk 0:00:05.2]} 48. h5 {[%clk
0:00:07.1]} 48... Kf5 {[%clk 0:00:05.1]} 49. h6 {[%clk 0:00:07.5]} 49... Bf8
{[%clk 0:00:05.6]} 50. g6 {[%clk 0:00:06.9]} 50... Bxh6 {[%clk 0:00:05.9]} 51.
Be8 {[%clk 0:00:06.6]} 51... Kf6 {[%clk 0:00:05.6]} 52. Kc2 {[%clk 0:00:05.7]}
52... Bg7 {[%clk 0:00:05]} 53. Bxa4 {[%clk 0:00:05.6]} 53... Kxg6 {[%clk
0:00:05]} 54. Bc6 {[%clk 0:00:06.2]} 54... Kf6 {[%clk 0:00:05.7]} 55. Kd3 {[%clk
0:00:06.7]} 55... Ke5 {[%clk 0:00:06.4]} 56. Kc4 {[%clk 0:00:07.1]} 56... Kd6
{[%clk 0:00:07.1]} 57. Be4 {[%clk 0:00:06.3]} 57... Bh6 {[%clk 0:00:08]} 58. b4
{[%clk 0:00:06.1]} 58... Ke5 {[%clk 0:00:07.6]} 59. Bc2 {[%clk 0:00:05.7]} 59...
Kd6 {[%clk 0:00:08.2]} 60. Bb3 {[%clk 0:00:06.1]} 60... Bg7 {[%clk 0:00:06.1]}
61. a4 {[%clk 0:00:05.7]} 61... Kc6 {[%clk 0:00:06.3]} 62. a5 {[%clk 0:00:05.8]}
62... Bh8 {[%clk 0:00:06.8]} 63. Ba4+ {[%clk 0:00:06.2]} 63... Kd6 {[%clk
0:00:07.3]} 64. b5 {[%clk 0:00:06.1]} 64... Bg7 {[%clk 0:00:06.5]} 65. b6 {[%clk
0:00:06.3]} 65... Bh6 {[%clk 0:00:01.8]} 66. Kb5 {[%clk 0:00:06.1]} 66... Bd2
{[%clk 0:00:01.8]} 67. a6 {[%clk 0:00:05.6]} 67... Bxc3 {[%clk 0:00:01.8]} 68.
a7 {[%clk 0:00:06]} 1-0

[Event "Late-Titled-Tuesday-Blitz-September-05-2023"]
[Site "Chess.com"]
[Date "2023.09.05"]
[Round "1"]
[White "PepeCuenca"]
[Black "sjoerd893"]
[Result "0-1"]
[WhiteElo "2674"]
[BlackElo "2430"]
[TimeControl "180+1"]
[EndTime "14:08:28 PDT"]
[Termination "sjoerd893 won by resignation"]

1. c4 {[%clk 0:03:00.9]} 1... e5 {[%clk 0:02:58.2]} 2. Nc3 {[%clk 0:03:00.8]}
2... Nf6 {[%clk 0:02:56.4]} 3. Nf3 {[%clk 0:03:01.2]} 3... Nc6 {[%clk 0:02:56]}
4. e4 {[%clk 0:03:01.9]} 4... Bb4 {[%clk 0:02:38.2]} 5. d3 {[%clk 0:03:01.5]}
5... d6 {[%clk 0:02:34.2]} 6. a3 {[%clk 0:03:02.1]} 6... Bc5 {[%clk 0:02:29.4]}
7. b4 {[%clk 0:03:01.9]} 7... Bb6 {[%clk 0:02:20.1]} 8. Na4 {[%clk 0:02:59.8]}
8... Bd4 {[%clk 0:02:16.9]} 9. Nxd4 {[%clk 0:02:56.7]} 9... Nxd4 {[%clk
0:02:17.8]} 10. Nc3 {[%clk 0:02:50.5]} 10... O-O {[%clk 0:02:09.4]} 11. Be2
{[%clk 0:02:46.3]} 11... a5 {[%clk 0:02:04.1]} 12. Rb1 {[%clk 0:02:30.6]} 12...
axb4 {[%clk 0:01:56.2]} 13. axb4 {[%clk 0:02:30.7]} 13... b6 {[%clk 0:01:37.1]}
14. Bg5 {[%clk 0:02:17.9]} 14... Ne6 {[%clk 0:01:24.9]} 15. Bh4 {[%clk
0:02:15.4]} 15... Nf4 {[%clk 0:01:24.4]} 16. O-O {[%clk 0:02:12]} 16... Ra3
{[%clk 0:01:16.1]} 17. Nd5 {[%clk 0:02:00.6]} 17... N6xd5 {[%clk 0:00:58.6]} 18.
Bxd8 {[%clk 0:01:46.8]} 18... Nc3 {[%clk 0:00:58.2]} 19. Qe1 {[%clk 0:00:41.5]}
19... Nfxe2+ {[%clk 0:00:54.2]} 20. Kh1 {[%clk 0:00:41.6]} 20... Rxd8 {[%clk
0:00:53.2]} 21. Ra1 {[%clk 0:00:30.7]} 21... Rb3 {[%clk 0:00:49.6]} 22. Ra8
{[%clk 0:00:25.3]} 22... Rb1 {[%clk 0:00:35.9]} 23. Qxb1 {[%clk 0:00:24.8]}
23... Nxb1 {[%clk 0:00:35.5]} 24. Rxb1 {[%clk 0:00:25.3]} 24... Kf8 {[%clk
0:00:30.5]} 25. Rba1 {[%clk 0:00:13.8]} 25... Ke7 {[%clk 0:00:29.8]} 26. R1a7
{[%clk 0:00:12.4]} 26... Bd7 {[%clk 0:00:17.4]} 27. Rxd8 {[%clk 0:00:09.5]}
27... Kxd8 {[%clk 0:00:17.2]} 28. g3 {[%clk 0:00:08.5]} 28... Nd4 {[%clk
0:00:16.3]} 29. Kg1 {[%clk 0:00:07.1]} 29... Nc2 {[%clk 0:00:16.5]} 30. b5
{[%clk 0:00:05.9]} 30... Nd4 {[%clk 0:00:13.8]} 31. f4 {[%clk 0:00:02]} 31...
exf4 {[%clk 0:00:13]} 32. gxf4 {[%clk 0:00:02.5]} 32... Ne2+ {[%clk 0:00:13.6]}
33. Kf2 {[%clk 0:00:03]} 33... Nxf4 {[%clk 0:00:14.3]} 34. Ke3 {[%clk
0:00:03.6]} 34... g5 {[%clk 0:00:11.4]} 35. Ra8+ {[%clk 0:00:04]} 35... Ke7
{[%clk 0:00:10.2]} 36. Ra7 {[%clk 0:00:04.2]} 36... Kd8 {[%clk 0:00:09.6]} 37.
Ra8+ {[%clk 0:00:04.8]} 37... Bc8 {[%clk 0:00:10.3]} 38. d4 {[%clk 0:00:03.1]}
38... Ne6 {[%clk 0:00:07.4]} 39. Ra1 {[%clk 0:00:02.4]} 39... h6 {[%clk
0:00:07.3]} 40. Rf1 {[%clk 0:00:02.4]} 40... Nf4 {[%clk 0:00:07]} 41. Ra1 {[%clk
0:00:02]} 41... Be6 {[%clk 0:00:07.4]} 42. Rc1 {[%clk 0:00:01.8]} 42... Kd7
{[%clk 0:00:06.9]} 43. d5 {[%clk 0:00:01.9]} 43... Bg4 {[%clk 0:00:06.8]} 44.
Ra1 {[%clk 0:00:02.2]} 44... Bh5 {[%clk 0:00:06.5]} 45. Ra8 {[%clk 0:00:02.4]}
45... Be2 {[%clk 0:00:05.9]} 46. Rh8 {[%clk 0:00:02.7]} 46... Bxc4 {[%clk
0:00:05.7]} 47. Rxh6 {[%clk 0:00:02.8]} 47... Bxb5 {[%clk 0:00:06.4]} 48. Kf3
{[%clk 0:00:02.5]} 48... Bc4 {[%clk 0:00:05.9]} 49. h4 {[%clk 0:00:02.7]} 49...
Nxd5 {[%clk 0:00:04.9]} 50. exd5 {[%clk 0:00:02.2]} 50... Bxd5+ {[%clk
0:00:05.8]} 51. Ke3 {[%clk 0:00:02.4]} 51... gxh4 {[%clk 0:00:06.5]} 52. Rxh4
{[%clk 0:00:03.1]} 52... b5 {[%clk 0:00:06.9]} 53. Kd4 {[%clk 0:00:03.5]} 53...
Be6 {[%clk 0:00:07]} 54. Rh8 {[%clk 0:00:03.9]} 54... c5+ {[%clk 0:00:07.7]} 55.
Kc3 {[%clk 0:00:03.6]} 55... b4+ {[%clk 0:00:08.6]} 56. Kd3 {[%clk 0:00:03.8]}
56... d5 {[%clk 0:00:09.1]} 57. Ra8 {[%clk 0:00:03.2]} 57... Kd6 {[%clk
0:00:09.3]} 58. Ra6+ {[%clk 0:00:03.7]} 58... Ke5 {[%clk 0:00:09.7]} 59. Ke3
{[%clk 0:00:04.6]} 59... d4+ {[%clk 0:00:09.5]} 60. Kd3 {[%clk 0:00:04.7]} 60...
Kd5 {[%clk 0:00:10.1]} 61. Ra8 {[%clk 0:00:04.4]} 61... c4+ {[%clk 0:00:10]} 62.
Kc2 {[%clk 0:00:05.1]} 62... Bf5+ {[%clk 0:00:09.8]} 63. Kd2 {[%clk 0:00:05.5]}
63... c3+ {[%clk 0:00:10.2]} 64. Kd1 {[%clk 0:00:06.2]} 64... b3 {[%clk
0:00:10.6]} 65. Ra5+ {[%clk 0:00:06.4]} 65... Ke4 {[%clk 0:00:11]} 66. Ra3
{[%clk 0:00:04.9]} 66... b2 {[%clk 0:00:11.4]} 67. Rb3 {[%clk 0:00:04.1]} 67...
Ke3 {[%clk 0:00:11.4]} 68. Rb6 {[%clk 0:00:03.4]} 68... b1=Q+ {[%clk 0:00:11.8]}
69. Rxb1 {[%clk 0:00:03]} 69... Bxb1 {[%clk 0:00:12.7]} 0-1

[Event "Late-Titled-Tuesday-Blitz-September-05-2023"]
[Site "Chess.com"]
[Date "2023.09.05"]
[Round "1"]
[White "newyorkmouse"]
[Black "eljanov"]
[Result "0-1"]
[WhiteElo "2456"]
[BlackElo "2878"]
[TimeControl "180+1"]
[EndTime "14:08:29 PDT"]
[Termination "eljanov won by checkmate"]

1. a3 {[%clk 0:02:54.7]} 1... e5 {[%clk 0:02:59.1]} 2. c4 {[%clk 0:02:54.1]}
2... c6 {[%clk 0:02:56.9]} 3. Nf3 {[%clk 0:02:53.1]} 3... e4 {[%clk 0:02:56.5]}
4. Nd4 {[%clk 0:02:53.6]} 4... d5 {[%clk 0:02:53.2]} 5. cxd5 {[%clk 0:02:53.5]}
5... Nf6 {[%clk 0:02:53.2]} 6. Nc3 {[%clk 0:02:52.7]} 6... Bc5 {[%clk
0:02:47.4]} 7. Nb3 {[%clk 0:02:51.1]} 7... Bb6 {[%clk 0:02:47.7]} 8. e3 {[%clk
0:02:45.6]} 8... cxd5 {[%clk 0:02:46.6]} 9. d3 {[%clk 0:02:45.7]} 9... Qe7
{[%clk 0:02:41.4]} 10. Be2 {[%clk 0:02:41]} 10... O-O {[%clk 0:02:41.1]} 11. O-O
{[%clk 0:02:40.9]} 11... Nc6 {[%clk 0:02:41.4]} 12. Bd2 {[%clk 0:02:36.2]} 12...
Ne5 {[%clk 0:02:29.6]} 13. d4 {[%clk 0:02:32.2]} 13... Ng6 {[%clk 0:02:29.5]}
14. Na4 {[%clk 0:02:26.8]} 14... Bc7 {[%clk 0:02:27]} 15. Bb4 {[%clk 0:02:25.7]}
15... Bd6 {[%clk 0:02:27.4]} 16. Bxd6 {[%clk 0:02:25.6]} 16... Qxd6 {[%clk
0:02:28.3]} 17. Rc1 {[%clk 0:02:25.3]} 17... Nh4 {[%clk 0:02:09.1]} 18. g3
{[%clk 0:01:41]} 18... Ng6 {[%clk 0:02:08.9]} 19. Qc2 {[%clk 0:01:39.7]} 19...
Qe6 {[%clk 0:02:06.6]} 20. Rfd1 {[%clk 0:01:33.9]} 20... Qh3 {[%clk 0:02:04.7]}
21. Bf1 {[%clk 0:01:33.6]} 21... Qh5 {[%clk 0:02:05]} 22. Qc7 {[%clk 0:01:15.4]}
22... Bg4 {[%clk 0:01:48]} 23. Re1 {[%clk 0:01:14.4]} 23... Bh3 {[%clk
0:01:45.3]} 24. Be2 {[%clk 0:01:03.7]} 24... Bg4 {[%clk 0:01:30.6]} 25. Bf1
{[%clk 0:01:02.3]} 25... b6 {[%clk 0:01:29.3]} 26. Rc6 {[%clk 0:00:39.9]} 26...
Rac8 {[%clk 0:01:18.4]} 27. Qb7 {[%clk 0:00:39.1]} 27... Rxc6 {[%clk 0:01:18.3]}
28. Qxc6 {[%clk 0:00:39.7]} 28... Bd7 {[%clk 0:01:17.9]} 29. Qc7 {[%clk
0:00:29.8]} 29... Bxa4 {[%clk 0:01:17.6]} 30. Nd2 {[%clk 0:00:30.3]} 30... Bd7
{[%clk 0:01:15]} 31. Qxa7 {[%clk 0:00:28.6]} 31... Bh3 {[%clk 0:01:14.7]} 32.
Qxb6 {[%clk 0:00:26.1]} 32... Bxf1 {[%clk 0:01:11]} 33. Nxf1 {[%clk 0:00:26.8]}
33... h6 {[%clk 0:01:11.1]} 34. a4 {[%clk 0:00:26.5]} 34... Nh7 {[%clk
0:01:11.4]} 35. h4 {[%clk 0:00:22.6]} 35... Qg4 {[%clk 0:01:04]} 36. Nh2 {[%clk
0:00:17.2]} 36... Qe6 {[%clk 0:00:38.7]} 37. Qb3 {[%clk 0:00:14.5]} 37... Ra8
{[%clk 0:00:36.7]} 38. Rc1 {[%clk 0:00:13.9]} 38... Nf6 {[%clk 0:00:36.8]} 39.
Qa3 {[%clk 0:00:13.8]} 39... Qa6 {[%clk 0:00:36]} 40. b3 {[%clk 0:00:13.2]}
40... Nf8 {[%clk 0:00:32.5]} 41. Nf1 {[%clk 0:00:12.1]} 41... Ne6 {[%clk
0:00:32.1]} 42. a5 {[%clk 0:00:10.8]} 42... g5 {[%clk 0:00:30.5]} 43. b4 {[%clk
0:00:11.3]} 43... gxh4 {[%clk 0:00:30.2]} 44. gxh4 {[%clk 0:00:12.2]} 44... Kh7
{[%clk 0:00:29.3]} 45. Qa4 {[%clk 0:00:12.5]} 45... Rg8+ {[%clk 0:00:29]} 46.
Kh2 {[%clk 0:00:12.1]} 46... Qd6+ {[%clk 0:00:28.5]} 47. Kh1 {[%clk 0:00:11.9]}
47... Rg4 {[%clk 0:00:25.9]} 48. Ng3 {[%clk 0:00:10.4]} 48... Rxg3 {[%clk
0:00:22.9]} 49. fxg3 {[%clk 0:00:10.6]} 49... Qxg3 {[%clk 0:00:23.2]} 50. Qc2
{[%clk 0:00:10]} 50... Qxe3 {[%clk 0:00:17.4]} 51. Rg1 {[%clk 0:00:10]} 51...
Nf4 {[%clk 0:00:16.1]} 52. Rf1 {[%clk 0:00:04]} 52... Qh3+ {[%clk 0:00:15.4]}
53. Kg1 {[%clk 0:00:04.5]} 53... Qg3+ {[%clk 0:00:15.3]} 54. Kh1 {[%clk
0:00:05]} 54... Ng4 {[%clk 0:00:15.6]} 55. a6 {[%clk 0:00:04.7]} 55... Qh3+
{[%clk 0:00:12]} 56. Kg1 {[%clk 0:00:05.2]} 56... Qg3+ {[%clk 0:00:12.4]} 57.
Kh1 {[%clk 0:00:05.8]} 57... Qxh4+ {[%clk 0:00:12.9]} 58. Kg1 {[%clk 0:00:06]}
58... Nh3+ {[%clk 0:00:13.3]} 59. Kg2 {[%clk 0:00:05.5]} 59... Ne3+ {[%clk
0:00:13.6]} 60. Kh2 {[%clk 0:00:05.5]} 60... Nf4+ {[%clk 0:00:12.4]} 61. Kg1
{[%clk 0:00:05.4]} 61... Qg3+ {[%clk 0:00:12.4]} 62. Kh1 {[%clk 0:00:05.9]}
62... Qh3+ {[%clk 0:00:12.9]} 63. Kg1 {[%clk 0:00:04.9]} 63... Qxf1+ {[%clk
0:00:13.2]} 64. Kh2 {[%clk 0:00:05.5]} 64... Nxc2 {[%clk 0:00:12.2]} 65. a7
{[%clk 0:00:05.5]} 65... Qf2+ {[%clk 0:00:12.5]} 66. Kh1 {[%clk 0:00:05.6]}
66... Qg2# {[%clk 0:00:13.1]} 0-1

[Event "Late-Titled-Tuesday-Blitz-September-05-2023"]
[Site "Chess.com"]
[Date "2023.09.05"]
[Round "1"]
[White "rquery98"]
[Black "SergioMoralesG"]
[Result "1-0"]
[WhiteElo "2681"]
[BlackElo "2376"]
[TimeControl "180+1"]
[EndTime "14:08:50 PDT"]
[Termination "rquery98 won by checkmate"]

1. Nf3 {[%clk 0:03:00.9]} 1... c5 {[%clk 0:02:58]} 2. c4 {[%clk 0:03:00.3]} 2...
Nc6 {[%clk 0:02:57.4]} 3. Nc3 {[%clk 0:03:00.5]} 3... Nf6 {[%clk 0:02:55.8]} 4.
d4 {[%clk 0:02:59.1]} 4... cxd4 {[%clk 0:02:44]} 5. Nxd4 {[%clk 0:03:00]} 5...
d6 {[%clk 0:02:43.1]} 6. g3 {[%clk 0:02:59.8]} 6... g6 {[%clk 0:02:41.4]} 7. Bg2
{[%clk 0:03:00]} 7... Bd7 {[%clk 0:02:41.4]} 8. O-O {[%clk 0:02:55.5]} 8... Bg7
{[%clk 0:02:41.3]} 9. Nc2 {[%clk 0:02:55.6]} 9... O-O {[%clk 0:02:39.3]} 10. b3
{[%clk 0:02:56]} 10... a6 {[%clk 0:02:30.5]} 11. Bb2 {[%clk 0:02:53.9]} 11...
Rc8 {[%clk 0:02:30.1]} 12. Ne3 {[%clk 0:02:43.4]} 12... Ng4 {[%clk 0:02:19.7]}
13. Ned5 {[%clk 0:02:35.7]} 13... e6 {[%clk 0:02:12.6]} 14. Nf4 {[%clk
0:02:34.8]} 14... Be5 {[%clk 0:02:11.1]} 15. e3 {[%clk 0:02:24]} 15... Nf6
{[%clk 0:02:04.5]} 16. Nd3 {[%clk 0:02:11.9]} 16... Qc7 {[%clk 0:01:54.2]} 17.
Nxe5 {[%clk 0:02:08.1]} 17... dxe5 {[%clk 0:01:54.2]} 18. Qf3 {[%clk 0:01:59.6]}
18... Ne8 {[%clk 0:01:43.8]} 19. h4 {[%clk 0:01:45.3]} 19... f5 {[%clk
0:01:42.4]} 20. h5 {[%clk 0:01:39.5]} 20... Nf6 {[%clk 0:01:42.3]} 21. hxg6
{[%clk 0:01:34]} 21... hxg6 {[%clk 0:01:43.2]} 22. Rfd1 {[%clk 0:01:29]} 22...
e4 {[%clk 0:01:27.5]} 23. Qe2 {[%clk 0:01:28.5]} 23... Ne5 {[%clk 0:01:27.9]}
24. Ba3 {[%clk 0:01:24.5]} 24... Nf3+ {[%clk 0:01:05.2]} 25. Bxf3 {[%clk
0:01:15.7]} 25... exf3 {[%clk 0:01:06.1]} 26. Qxf3 {[%clk 0:01:16.4]} 26... Bc6
{[%clk 0:01:01.7]} 27. Qf4 {[%clk 0:01:00.7]} 27... Qh7 {[%clk 0:00:51.7]} 28.
f3 {[%clk 0:00:42.3]} 28... Qh3 {[%clk 0:00:39.2]} 29. Qh4 {[%clk 0:00:19.9]}
29... Qxh4 {[%clk 0:00:30.9]} 30. gxh4 {[%clk 0:00:20.8]} 30... Rf7 {[%clk
0:00:06.6]} 31. Kf2 {[%clk 0:00:21.2]} 31... Rh7 {[%clk 0:00:04]} 32. Rh1 {[%clk
0:00:21.7]} 32... Kf7 {[%clk 0:00:04.4]} 33. Rh3 {[%clk 0:00:13]} 33... Rch8
{[%clk 0:00:04.6]} 34. Rah1 {[%clk 0:00:13.7]} 34... Nd7 {[%clk 0:00:03.3]} 35.
Ne2 {[%clk 0:00:13.1]} 35... Ne5 {[%clk 0:00:03.3]} 36. Nf4 {[%clk 0:00:09.9]}
36... Nxf3 {[%clk 0:00:02.3]} 37. Rxf3 {[%clk 0:00:08.4]} 37... Bxf3 {[%clk
0:00:03.2]} 38. Kxf3 {[%clk 0:00:09.3]} 38... Rxh4 {[%clk 0:00:03.3]} 39. Rd1
{[%clk 0:00:08.6]} 39... g5 {[%clk 0:00:01.6]} 40. Rd7+ {[%clk 0:00:08.8]} 40...
Ke8 {[%clk 0:00:01.8]} 41. Re7+ {[%clk 0:00:09.3]} 41... Kd8 {[%clk 0:00:02.3]}
42. Nxe6+ {[%clk 0:00:10]} 42... Kc8 {[%clk 0:00:02.6]} 43. Rc7+ {[%clk
0:00:10.8]} 43... Kb8 {[%clk 0:00:03.2]} 44. Bd6 {[%clk 0:00:11]} 44... Rh3+
{[%clk 0:00:03.2]} 45. Ke2 {[%clk 0:00:11]} 45... Ka8 {[%clk 0:00:04.1]} 46. Re7
{[%clk 0:00:10.5]} 46... g4 {[%clk 0:00:04.2]} 47. Nc7+ {[%clk 0:00:10.4]} 47...
Ka7 {[%clk 0:00:04]} 48. Nd5 {[%clk 0:00:10.9]} 48... g3 {[%clk 0:00:03.5]} 49.
Rg7 {[%clk 0:00:11.4]} 49... Rh2+ {[%clk 0:00:03.9]} 50. Kd3 {[%clk 0:00:11.8]}
50... g2 {[%clk 0:00:04.3]} 51. Bxh2 {[%clk 0:00:11.8]} 51... Rxh2 {[%clk
0:00:03.7]} 52. Nf4 {[%clk 0:00:12.4]} 52... a5 {[%clk 0:00:02.4]} 53. Rxg2
{[%clk 0:00:11.9]} 53... Rh1 {[%clk 0:00:03.1]} 54. Rd2 {[%clk 0:00:12.1]} 54...
Ra1 {[%clk 0:00:03]} 55. Rc2 {[%clk 0:00:12.3]} 55... Kb6 {[%clk 0:00:03.2]} 56.
Kd4 {[%clk 0:00:12.8]} 56... Kc6 {[%clk 0:00:03.7]} 57. Ke5 {[%clk 0:00:13.3]}
57... Rd1 {[%clk 0:00:04.2]} 58. Kxf5 {[%clk 0:00:13.8]} 58... Re1 {[%clk
0:00:04.9]} 59. Ke4 {[%clk 0:00:14.3]} 59... b6 {[%clk 0:00:04.2]} 60. Kd3
{[%clk 0:00:15.2]} 60... Kc5 {[%clk 0:00:04.1]} 61. Ne2 {[%clk 0:00:15.6]} 61...
Rh1 {[%clk 0:00:02.6]} 62. Nc3 {[%clk 0:00:16.1]} 62... Kc6 {[%clk 0:00:02.9]}
63. Ne4 {[%clk 0:00:16.7]} 63... Rd1+ {[%clk 0:00:03.3]} 64. Rd2 {[%clk
0:00:17.3]} 64... Rh1 {[%clk 0:00:04.2]} 65. Rf2 {[%clk 0:00:17.8]} 65... Rh3
{[%clk 0:00:04.1]} 66. Rf6+ {[%clk 0:00:17.2]} 66... Kb7 {[%clk 0:00:04.6]} 67.
Kd4 {[%clk 0:00:17.2]} 67... Ka6 {[%clk 0:00:05]} 68. c5 {[%clk 0:00:16.6]}
68... Rh4 {[%clk 0:00:03.5]} 69. Rxb6+ {[%clk 0:00:17]} 69... Ka7 {[%clk
0:00:04]} 70. Rb5 {[%clk 0:00:17.2]} 70... Ka6 {[%clk 0:00:03.7]} 71. Rb6+
{[%clk 0:00:17.7]} 71... Ka7 {[%clk 0:00:04.1]} 72. Re6 {[%clk 0:00:18.5]} 72...
a4 {[%clk 0:00:03.3]} 73. b4 {[%clk 0:00:18.5]} 73... Rg4 {[%clk 0:00:03.6]} 74.
b5 {[%clk 0:00:18.6]} 74... a3 {[%clk 0:00:04.5]} 75. b6+ {[%clk 0:00:18.5]}
75... Ka6 {[%clk 0:00:04.9]} 76. Kd5 {[%clk 0:00:18.4]} 76... Rh4 {[%clk
0:00:04.9]} 77. Re7 {[%clk 0:00:18.7]} 77... Rh5+ {[%clk 0:00:03.7]} 78. Kc6
{[%clk 0:00:18.8]} 78... Rxc5+ {[%clk 0:00:03]} 79. Nxc5+ {[%clk 0:00:18.9]}
79... Ka5 {[%clk 0:00:03.4]} 80. Ra7+ {[%clk 0:00:19.4]} 80... Kb4 {[%clk
0:00:03.8]} 81. Ra4+ {[%clk 0:00:20.2]} 81... Kc3 {[%clk 0:00:03.9]} 82. Rxa3+
{[%clk 0:00:21]} 82... Kb2 {[%clk 0:00:04.3]} 83. Rb3+ {[%clk 0:00:21.1]} 83...
Kxa2 {[%clk 0:00:04.4]} 84. b7 {[%clk 0:00:21.1]} 84... Ka1 {[%clk 0:00:04.9]}
85. b8=Q {[%clk 0:00:21.8]} 85... Ka2 {[%clk 0:00:05.8]} 86. Qa8# {[%clk
0:00:22.4]} 1-0